2CCN - Level 2 Cost Centre Name,,9CCN - Level 9 Cost Centre Name,9CCC - Level 9 Cost Centre Code,9AN - Level 9 Account Name,9AC - Level 9 Account Code,Date posted,Date of transaction,Merchant Name,Merchant City,Merchant State,Merchant Zip Code,Originating Account Name,Originating Account Number,MCC/SIC Code,MCC Description,Original Amount,Currency,Conversion Rate,Billed Amount,Debit Credit,Reference Number,Statement Cycle,Account Name
Gloucester City Council,23UE,Museum of Gloucester,MU002,General Supplies/Materials,3025,03/05/2019,02/05/2019,AMZN Mktp UK*MN5AJ0LP4,800-279-6620,LUX,L2338,REDACTED,556*********2362,5942,BOOK STORES,17.7,Pound Sterling (826),1.000000000,17.7,Debit,55204729122200839372167,02/06/2019,GLOUCESTER CC
Gloucester City Council,23UE,Museum of Gloucester,MU002,General Supplies/Materials,3025,03/05/2019,02/05/2019,WWW.PRESERVATIONEQUIPM,01379647400,,IP22 4HQ,REDACTED,556*********2362,4225,"PUBLIC WAREHOUSING-FARM PROD,REFRIGERATE",26.22,Pound Sterling (826),1.000000000,26.22,Debit,55504439122174162163076,02/06/2019,GLOUCESTER CC
Gloucester City Council,23UE,Museum of Gloucester,MU002,General Supplies/Materials,3025,03/05/2019,02/05/2019,THE RANGE,GLOUCESTER,,GL4 3BY,REDACTED,556*********2362,5311,DEPARTMENT STORES,27.32,Pound Sterling (826),1.000000000,27.32,Debit,85481479123136301195151,02/06/2019,GLOUCESTER CC
Gloucester City Council,23UE,Museum of Gloucester,MU002,General Supplies/Materials,3025,06/05/2019,02/05/2019,AMZN MKTP UK*MN5VN6LV4,AMAZON.CO.UK,LUX,,REDACTED,556*********2362,5942,BOOK STORES,29.3,Pound Sterling (826),1.000000000,29.3,Debit,85396889123917707172306,02/06/2019,GLOUCESTER CC
Gloucester City Council,23UE,Museum of Gloucester,MU002,Advertising & Publicity,3404,06/05/2019,04/05/2019,FACEBK *LLVPRKEKW2,fb.me/ads,IRL,UNKNOWN,REDACTED,556*********2362,7311,ADVERTISING SERVICES,1.99,Pound Sterling (826),1.000000000,1.99,Debit,55204729124200316152072,02/06/2019,GLOUCESTER CC
Gloucester City Council,23UE,Museum of Gloucester,MU002,General Supplies/Materials,3025,06/05/2019,03/05/2019,THE WORKS,GLOUCESTER,,GL1 2NG,REDACTED,556*********2362,5310,DISCOUNT STORES,22.05,Pound Sterling (826),1.000000000,22.05,Debit,85481479124136680554969,02/06/2019,GLOUCESTER CC
Gloucester City Council,23UE,Museum of Gloucester,MU002,General Supplies/Materials,3025,06/05/2019,05/05/2019,Amazon.co.uk*MN5JV5NO4,AMAZON.CO.UK,LUX,L2338,REDACTED,556*********2362,5969,ALL OTHER DIRECT MARKETERS,3.22,Pound Sterling (826),1.000000000,3.22,Debit,55204729125200582652192,02/06/2019,GLOUCESTER CC
Gloucester City Council,23UE,Museum of Gloucester,MU002,General Supplies/Materials,3025,06/05/2019,05/05/2019,Amazon.co.uk*MN58B9NX4,AMAZON.CO.UK,LUX,L2338,REDACTED,556*********2362,5969,ALL OTHER DIRECT MARKETERS,3.22,Pound Sterling (826),1.000000000,3.22,Debit,55204729125200582088181,02/06/2019,GLOUCESTER CC
Gloucester City Council,23UE,Museum of Gloucester,MU002,Exhibition Costs,3021,06/05/2019,04/05/2019,B & Q 1179,GLOUCESTER,,GL12SG,REDACTED,556*********2362,5211,LUMBER AND BUILDING MATERIALS STORES,121.05,Pound Sterling (826),1.000000000,121.05,Debit,85481479125136864950115,02/06/2019,GLOUCESTER CC
Gloucester City Council,23UE,Museum of Gloucester Catering,MU004,Hospitality & Refreshments,3104,06/05/2019,04/05/2019,ASDA SUPERSTORE,GLOUCESTER,GBR,GL1 1DS,REDACTED,556*********2362,5411,"GROCERY STORES, SUPERMARKETS",7.96,Pound Sterling (826),1.000000000,7.96,Debit,15377759125010752130313,02/06/2019,GLOUCESTER CC
Gloucester City Council,23UE,Museum of Gloucester,MU002,General Supplies/Materials,3025,07/05/2019,06/05/2019,Amazon.co.uk*MN18D93G4,AMAZON.CO.UK,LUX,L2338,REDACTED,556*********2362,5969,ALL OTHER DIRECT MARKETERS,18.15,Pound Sterling (826),1.000000000,18.15,Debit,55204729126200774476235,02/06/2019,GLOUCESTER CC
Gloucester City Council,23UE,Museum of Gloucester,MU002,General Supplies/Materials,3025,08/05/2019,04/05/2019,WWW.PRESERVATIONEQUIPM,01379647400,,IP22 4HQ,REDACTED,556*********2362,4225,"PUBLIC WAREHOUSING-FARM PROD,REFRIGERATE",77.82,Pound Sterling (826),1.000000000,77.82,Debit,55504439127174196454132,02/06/2019,GLOUCESTER CC
Gloucester City Council,23UE,Museum of Gloucester,MU002,General Supplies/Materials,3025,08/05/2019,07/05/2019,MILLINGTON & RAMSTEDT,GLOUCESTER,GBR,GL1 5TA,REDACTED,556*********2362,5231,"GLASS, PAINT, WALLPAPER STORES",35.9,Pound Sterling (826),1.000000000,35.9,Debit,05272479128910091053929,02/06/2019,GLOUCESTER CC
Gloucester City Council,23UE,Museum of Gloucester,MU002,General Supplies/Materials,3025,10/05/2019,09/05/2019,WWW.PRESERVATIONEQUIPM,01379647400,,IP22 4HQ,REDACTED,556*********2362,4225,"PUBLIC WAREHOUSING-FARM PROD,REFRIGERATE",129.22,Pound Sterling (826),1.000000000,129.22,Debit,55504439129174111789826,02/06/2019,GLOUCESTER CC
Gloucester City Council,23UE,Museum of Gloucester Catering,MU004,Hospitality & Refreshments,3104,13/05/2019,10/05/2019,ASDA SUPERSTORE,GLOUCESTER,GBR,GL1 1DS,REDACTED,556*********2362,5411,"GROCERY STORES, SUPERMARKETS",11.28,Pound Sterling (826),1.000000000,11.28,Debit,45377759131050295203895,02/06/2019,GLOUCESTER CC
Gloucester City Council,23UE,Museum of Gloucester Catering,MU004,Hospitality & Refreshments,3104,16/05/2019,15/05/2019,TESCO STORES 6819,GLOUCESTER,GBR,GL1 1TP,REDACTED,556*********2362,5411,"GROCERY STORES, SUPERMARKETS",2.2,Pound Sterling (826),1.000000000,2.2,Debit,15377759136080039837847,02/06/2019,GLOUCESTER CC
Gloucester City Council,23UE,Museum of Gloucester,MU002,General Supplies/Materials,3025,20/05/2019,17/05/2019,AMZN Mktp UK*MN3G705M4,800-279-6620,LUX,L2338,REDACTED,556*********2362,5942,BOOK STORES,14.94,Pound Sterling (826),1.000000000,14.94,Debit,55204729137200307643316,02/06/2019,GLOUCESTER CC
Gloucester City Council,23UE,Museum of Gloucester Catering,MU004,Hospitality & Refreshments,3104,20/05/2019,17/05/2019,ASDA SUPERSTORE,GLOUCESTER,GBR,GL1 1DS,REDACTED,556*********2362,5411,"GROCERY STORES, SUPERMARKETS",1.48,Pound Sterling (826),1.000000000,1.48,Debit,45377759138000333653109,02/06/2019,GLOUCESTER CC
Gloucester City Council,23UE,Museum of Gloucester Catering,MU004,Hospitality & Refreshments,3104,20/05/2019,18/05/2019,ASDA SUPERSTORE,GLOUCESTER,GBR,GL1 1DS,REDACTED,556*********2362,5411,"GROCERY STORES, SUPERMARKETS",9.44,Pound Sterling (826),1.000000000,9.44,Debit,15377759139000760708642,02/06/2019,GLOUCESTER CC
Gloucester City Council,23UE,Museum of Gloucester,MU002,General Supplies/Materials,3025,20/05/2019,19/05/2019,THE WORKS,GLOUCESTER,,GL1 2NG,REDACTED,556*********2362,5310,DISCOUNT STORES,9,Pound Sterling (826),1.000000000,9,Debit,85481479140140784477614,02/06/2019,GLOUCESTER CC
Gloucester City Council,23UE,Museum of Gloucester Catering,MU004,Hospitality & Refreshments,3104,23/05/2019,22/05/2019,ASDA SUPERSTORE,GLOUCESTER,GBR,GL1 1DS,REDACTED,556*********2362,5411,"GROCERY STORES, SUPERMARKETS",14.82,Pound Sterling (826),1.000000000,14.82,Debit,45377759143030283012363,02/06/2019,GLOUCESTER CC
Gloucester City Council,23UE,Museum of Gloucester,MU002,Exhibition Costs,3021,29/05/2019,28/05/2019,Amazon.co.uk*MN7N89904,AMAZON.CO.UK,LUX,L2338,REDACTED,556*********2362,5969,ALL OTHER DIRECT MARKETERS,30.38,Pound Sterling (826),1.000000000,30.38,Debit,55204729148200695792334,02/06/2019,GLOUCESTER CC
Gloucester City Council,23UE,Museum of Gloucester,MU002,General Supplies/Materials,3025,30/05/2019,29/05/2019,AMZN MKTP UK*MN5I40UD4,AMAZON.CO.UK,LUX,,REDACTED,556*********2362,5942,BOOK STORES,80.07,Pound Sterling (826),1.000000000,80.07,Debit,85396889149921022583197,02/06/2019,GLOUCESTER CC
Gloucester City Council,23UE,Museum of Gloucester Catering,MU004,Hospitality & Refreshments,3104,30/05/2019,29/05/2019,ASDA SUPERSTORE,GLOUCESTER,GBR,GL1 1DS,REDACTED,556*********2362,5411,"GROCERY STORES, SUPERMARKETS",1.48,Pound Sterling (826),1.000000000,1.48,Debit,35377759150070213632220,02/06/2019,GLOUCESTER CC
Gloucester City Council,23UE,Community Wellbeing,FL001,Conference Fees,0553,10/05/2019,09/05/2019,TRAVELODGE GB0000,THAME,,,REDACTED,471*********7903,3615,TRAVELODGE,171.25,Pound Sterling (826),1.000000000,171.25,Debit,74830509129298112448326,02/06/2019,GLOUCESTER CC
Gloucester City Council,23UE,Managing Director & Directors,MT001,Stationery,3201,21/05/2019,20/05/2019,CCL LABEL LIMITED,CASTLEFORD,,,REDACTED,471*********7903,5533,"AUTOMOTIVE PARTS, ACCESSORIES STORES",28,Pound Sterling (826),1.000000000,28,Debit,74008559140919695267066,02/06/2019,GLOUCESTER CC
Gloucester City Council,23UE,Managing Director & Directors,MT001,Gifts and Prizes,3903,23/05/2019,22/05/2019,POUNDLAND LTD 1167,GLOUCESTER,,,REDACTED,471*********7903,5310,DISCOUNT STORES,10,Pound Sterling (826),1.000000000,10,Debit,74163619143141429830420,02/06/2019,GLOUCESTER CC
Gloucester City Council,23UE,Managing Director & Directors,MT001,Stationery,3201,27/05/2019,23/05/2019,WWW.FINDMYSUPPLIES.CO.UK,SHEFFIELD,,,REDACTED,471*********7903,5111,"STATIONERY,OFFICE SUPPLIES,PRINTING AND WRITING PAPER",23.04,Pound Sterling (826),1.000000000,23.04,Debit,74085329144975000057626,02/06/2019,GLOUCESTER CC
Gloucester City Council,23UE,Managing Director & Directors,MT001,Stationery,3201,27/05/2019,24/05/2019,AMZNMktplace,amazon.co.uk,,,REDACTED,471*********7903,5999,MISCELLANEOUS AND RETAIL STORES,43.53,Pound Sterling (826),1.000000000,43.53,Debit,74313229144100390615828,02/06/2019,GLOUCESTER CC
Gloucester City Council,23UE,Managing Director & Directors,MT001,Public Transport - Staff,2402,06/05/2019,03/05/2019,Trainline,London,GBR,1445,REDACTED,556*********1418,4112,PASSENGER RAILWAYS,56.1,Pound Sterling (826),1.000000000,56.1,Debit,85130089123917684290194,02/06/2019,GLOUCESTER CC
Gloucester City Council,23UE,Members Support,DS002,Members Travel Expenses,3609,06/05/2019,03/05/2019,Trainline,London,GBR,1445,REDACTED,556*********1418,4112,PASSENGER RAILWAYS,80.8,Pound Sterling (826),1.000000000,80.8,Debit,85130089123917684237286,02/06/2019,GLOUCESTER CC
Gloucester City Council,23UE,Managing Director & Directors,MT001,Public Transport - Staff,2402,06/05/2019,03/05/2019,Trainline,London,GBR,1445,REDACTED,556*********1418,4112,PASSENGER RAILWAYS,72,Pound Sterling (826),1.000000000,72,Debit,85130089123917684237336,02/06/2019,GLOUCESTER CC
Gloucester City Council,23UE,Members Support,DS002,Members Travel Expenses,3609,13/05/2019,10/05/2019,Trainline,London,GBR,1445,REDACTED,556*********1418,4112,PASSENGER RAILWAYS,80.8,Pound Sterling (826),1.000000000,80.8,Debit,85130089130918011166355,02/06/2019,GLOUCESTER CC
Gloucester City Council,23UE,Members Support,DS002,Members Travel Expenses,3609,13/05/2019,10/05/2019,Trainline,London,GBR,1445,REDACTED,556*********1418,4112,PASSENGER RAILWAYS,18.75,Pound Sterling (826),1.000000000,18.75,Debit,85130089130918011166413,02/06/2019,GLOUCESTER CC
Gloucester City Council,23UE,Community Wellbeing,FL001,Conference Fees,0553,17/05/2019,15/05/2019,HOLIDAY INN EXPRESS,BRIMINGHAM,GBR,B4 6HY,REDACTED,556*********1418,3501,HOLIDAY INNS,189,Pound Sterling (826),1.000000000,189,Debit,55184229136911367965565,02/06/2019,GLOUCESTER CC
Gloucester City Council,23UE,Managing Director & Directors,MT001,Public Transport - Staff,2402,20/05/2019,17/05/2019,Trainline,London,GBR,1445,REDACTED,556*********1418,4112,PASSENGER RAILWAYS,-60.5,Pound Sterling (826),1.000000000,-60.5,Credit,85130089137919338567179,02/06/2019,GLOUCESTER CC
Gloucester City Council,23UE,Members Support,DS002,Members Travel Expenses,3609,23/05/2019,21/05/2019,Trainline,London,GBR,1445,REDACTED,556*********1418,4112,PASSENGER RAILWAYS,-69.3,Pound Sterling (826),1.000000000,-69.3,Credit,85130089142920564540404,02/06/2019,GLOUCESTER CC
Gloucester City Council,23UE,Countryside Unit,EP003,Vehicle Repairs and Maintenance,2103,09/05/2019,08/05/2019,AMZNMktplace,amazon.co.uk,GBR,EC2A 2FA,REDACTED,556*********6734,5999,MISCELLANEOUS AND RETAIL STORES,29.1,Pound Sterling (826),1.000000000,29.1,Debit,55204729128200288680122,02/06/2019,GLOUCESTER CC
Gloucester City Council,23UE,Countryside Unit,EP003,Vehicle Repairs and Maintenance,2103,30/05/2019,29/05/2019,HALFORDS 0749,GLOUCESTER,GBR,GL4 3EA,REDACTED,556*********6734,5940,BICYCLE SHOPS-SALES AND SERVICE,33.99,Pound Sterling (826),1.000000000,33.99,Debit,35377759150070247181442,02/06/2019,GLOUCESTER CC
Gloucester City Council,23UE,Guildhall Bar and Caf�,GH005,Catering Provisions,3103,06/05/2019,05/05/2019,TESCO STORES LTD 6498,GLOUCESTER,GBR,GL1 1SZ,REDACTED,556*********1155,5411,"GROCERY STORES, SUPERMARKETS",4.3,Pound Sterling (826),1.000000000,4.3,Debit,55377759126010972426793,02/06/2019,GLOUCESTER CC
Gloucester City Council,23UE,Guildhall Bar and Caf�,GH005,Catering Provisions,3103,10/05/2019,09/05/2019,SAINSBURYS SACAT 0771,GLOUCESTER,GBR,GL1 2AG,REDACTED,556*********1155,5411,"GROCERY STORES, SUPERMARKETS",5.2,Pound Sterling (826),1.000000000,5.2,Debit,25425159130040143426077,02/06/2019,GLOUCESTER CC
Gloucester City Council,23UE,Guildhall Bar and Caf�,GH005,Catering Provisions,3103,10/05/2019,09/05/2019,HOLLAND & BARRETT,GLOUCESTER,,GL1 1PD,REDACTED,556*********1155,5999,MISCELLANEOUS AND RETAIL STORES,7.23,Pound Sterling (826),1.000000000,7.23,Debit,85481479130138186324337,02/06/2019,GLOUCESTER CC
Gloucester City Council,23UE,Gloucester Guildhall,GH001,Equipment and Furniture,3001,20/05/2019,18/05/2019,AMZN Mktp UK*MN3V33HQ4,800-279-6620,LUX,L2338,REDACTED,556*********1155,5942,BOOK STORES,45.5,Pound Sterling (826),1.000000000,45.5,Debit,55204729138200551046033,02/06/2019,GLOUCESTER CC
Gloucester City Council,23UE,Guildhall Bar and Caf�,GH005,Catering Provisions,3103,23/05/2019,22/05/2019,SAINSBURYS SACAT 0771,GLOUCESTER,GBR,GL1 2AG,REDACTED,556*********1155,5411,"GROCERY STORES, SUPERMARKETS",31,Pound Sterling (826),1.000000000,31,Debit,25425159143030182677560,02/06/2019,GLOUCESTER CC
Gloucester City Council,23UE,Guildhall Events,GH002,Advertising & Publicity,3404,09/05/2019,08/05/2019,WWW.DIGITALPRINTING.CO,02890222111,,BT3 9JP,REDACTED,556*********8997,7338,QUICK-COPY AND REPRODUCTION SERVICES,25.14,Pound Sterling (826),1.000000000,25.14,Debit,55504439128295387934209,02/06/2019,GLOUCESTER CC
Gloucester City Council,23UE,Museum of Gloucester,MU002,Public Transport - Staff,2402,13/05/2019,10/05/2019,WWW.GWR.COM,07889651585,,SN1 1HL,REDACTED,556*********8997,4112,PASSENGER RAILWAYS,21.9,Pound Sterling (826),1.000000000,21.9,Debit,55504439130081121149684,02/06/2019,GLOUCESTER CC
Gloucester City Council,23UE,Blackfriars ,GH010,Advertising & Publicity,3404,14/05/2019,13/05/2019,WWW.INSTANTPRINT.C,01709 382202,,S63 5DR,REDACTED,556*********8997,7338,QUICK-COPY AND REPRODUCTION SERVICES,25.99,Pound Sterling (826),1.000000000,25.99,Debit,85481479134139150767853,02/06/2019,GLOUCESTER CC
Gloucester City Council,23UE,Gloucester Guildhall,GH001,General Supplies/Materials,3025,15/05/2019,14/05/2019,AMZNMktplace,amazon.co.uk,GBR,EC2A 2FA,REDACTED,556*********8997,5999,MISCELLANEOUS AND RETAIL STORES,155.68,Pound Sterling (826),1.000000000,155.68,Debit,55204729134200623251136,02/06/2019,GLOUCESTER CC
Gloucester City Council,23UE,Gloucester Guildhall,GH001,Equipment and Furniture,3001,15/05/2019,15/05/2019,AMZNMktplace,amazon.co.uk,GBR,EC2A 2FA,REDACTED,556*********8997,5999,MISCELLANEOUS AND RETAIL STORES,22.47,Pound Sterling (826),1.000000000,22.47,Debit,55204729135200743171510,02/06/2019,GLOUCESTER CC
Gloucester City Council,23UE,Guildhall Events,GH002,Catering Provisions,3103,15/05/2019,14/05/2019,TESCO STORES 5363,GLOUCESTER,GBR,GL3 4AA,REDACTED,556*********8997,5411,"GROCERY STORES, SUPERMARKETS",48.33,Pound Sterling (826),1.000000000,48.33,Debit,65377759135070378088132,02/06/2019,GLOUCESTER CC
Gloucester City Council,23UE,Guildhall Events,GH002,Advertising & Publicity,3404,16/05/2019,15/05/2019,WWW.INSTANTPRINT.C,01709 382202,,S63 5DR,REDACTED,556*********8997,7338,QUICK-COPY AND REPRODUCTION SERVICES,35.99,Pound Sterling (826),1.000000000,35.99,Debit,85481479136139604926632,02/06/2019,GLOUCESTER CC
Gloucester City Council,23UE,Guildhall Events,GH002,Advertising & Publicity,3404,17/05/2019,16/05/2019,WWW.INSTANTPRINT.C,01709 382202,,S63 5DR,REDACTED,556*********8997,7338,QUICK-COPY AND REPRODUCTION SERVICES,45.99,Pound Sterling (826),1.000000000,45.99,Debit,85481479137139907167289,02/06/2019,GLOUCESTER CC
Gloucester City Council,23UE,Museum of Gloucester,MU002,Exhibition Costs,3021,20/05/2019,17/05/2019,ETSY.COM - SPOTTEDDOG1,ETSY.COM,IRL,,REDACTED,556*********8997,5699,MISCELLANEOUS APPAREL AND ACCESSORY STOR,65.16,Pound Sterling (826),1.000000000,65.16,Debit,35377779138000282871982,02/06/2019,GLOUCESTER CC
Gloucester City Council,23UE,Guildhall Events,GH002,Advertising & Publicity,3404,20/05/2019,18/05/2019,MAILCHIMP *MONTHLY,MAILCHIMP.COM,GA,30308,REDACTED,556*********8997,5968,CONTINUITY/SUBSCRIPTION MERCHANTS,23.79,Pound Sterling (826),1.000000000,23.79,Debit,55425449138200631957199,02/06/2019,GLOUCESTER CC
Gloucester City Council,23UE,Guildhall Events,GH002,Advertising & Publicity,3404,20/05/2019,19/05/2019,FACEBK *VQQW3NJ9X2,fb.me/ads,IRL,UNKNOWN,REDACTED,556*********8997,7311,ADVERTISING SERVICES,142.76,Pound Sterling (826),1.000000000,142.76,Debit,55204729139200752750879,02/06/2019,GLOUCESTER CC
Gloucester City Council,23UE,Gloucester Guildhall,GH001,General Supplies/Materials,3025,20/05/2019,19/05/2019,AMZNMKTPLACE AMAZON.CO,AMAZON.CO.UK,GBR,,REDACTED,556*********8997,5999,MISCELLANEOUS AND RETAIL STORES,64.48,Pound Sterling (826),1.000000000,64.48,Debit,85389249139919898207295,02/06/2019,GLOUCESTER CC
Gloucester City Council,23UE,Shopmobility,SM001,Equipment and Furniture,3001,21/05/2019,20/05/2019,AMZNMktplace,amazon.co.uk,GBR,EC2A 2FA,REDACTED,556*********8997,5999,MISCELLANEOUS AND RETAIL STORES,188.97,Pound Sterling (826),1.000000000,188.97,Debit,55204729140200943480839,02/06/2019,GLOUCESTER CC
Gloucester City Council,23UE,Shopmobility,SM001,Equipment and Furniture,3001,21/05/2019,20/05/2019,AMZNMktplace,amazon.co.uk,GBR,EC2A 2FA,REDACTED,556*********8997,5999,MISCELLANEOUS AND RETAIL STORES,8.99,Pound Sterling (826),1.000000000,8.99,Debit,55204729140200946637328,02/06/2019,GLOUCESTER CC
Gloucester City Council,23UE,Shopmobility,SM001,Equipment and Furniture,3001,21/05/2019,20/05/2019,AMZNMktplace,amazon.co.uk,GBR,EC2A 2FA,REDACTED,556*********8997,5999,MISCELLANEOUS AND RETAIL STORES,72.6,Pound Sterling (826),1.000000000,72.6,Debit,55204729140200948676852,02/06/2019,GLOUCESTER CC
Gloucester City Council,23UE,Shopmobility,SM001,Equipment and Furniture,3001,21/05/2019,20/05/2019,AMZNMktplace,amazon.co.uk,GBR,EC2A 2FA,REDACTED,556*********8997,5999,MISCELLANEOUS AND RETAIL STORES,92.75,Pound Sterling (826),1.000000000,92.75,Debit,55204729140200960965795,02/06/2019,GLOUCESTER CC
Gloucester City Council,23UE,Shopmobility,SM001,Equipment and Furniture,3001,21/05/2019,21/05/2019,AMZNMktplace,amazon.co.uk,GBR,EC2A 2FA,REDACTED,556*********8997,5999,MISCELLANEOUS AND RETAIL STORES,253.92,Pound Sterling (826),1.000000000,253.92,Debit,55204729141200050308103,02/06/2019,GLOUCESTER CC
Gloucester City Council,23UE,Shopmobility,SM001,Equipment and Furniture,3001,21/05/2019,21/05/2019,AMZN Mktp UK*MN5RG38L4,800-279-6620,LUX,L2338,REDACTED,556*********8997,5942,BOOK STORES,8.19,Pound Sterling (826),1.000000000,8.19,Debit,55204729141200097496119,02/06/2019,GLOUCESTER CC
Gloucester City Council,23UE,Arts Educational Promotion,MU001,Equipment and Furniture,3001,24/05/2019,23/05/2019,CONSERVATION RESOURCES,BICESTER,GBR,OX25 5HA,REDACTED,556*********8997,5085,INDUSTRIAL SUPPLIES NOT ELSEWHERE CLASSI,62.66,Pound Sterling (826),1.000000000,62.66,Debit,05272469144910064167202,02/06/2019,GLOUCESTER CC
Gloucester City Council,23UE,Guildhall Events,GH002,Advertising & Publicity,3404,24/05/2019,23/05/2019,WWW.INSTANTPRINT.C,01709 382202,,S63 5DR,REDACTED,556*********8997,7338,QUICK-COPY AND REPRODUCTION SERVICES,53.59,Pound Sterling (826),1.000000000,53.59,Debit,85481479144141736079132,02/06/2019,GLOUCESTER CC
Gloucester City Council,23UE,Arts Educational Promotion,MU001,Equipment and Furniture,3001,27/05/2019,24/05/2019,AMZNMktplace,amazon.co.uk,GBR,EC2A 2FA,REDACTED,556*********8997,5999,MISCELLANEOUS AND RETAIL STORES,38.35,Pound Sterling (826),1.000000000,38.35,Debit,55204729144200913177064,02/06/2019,GLOUCESTER CC
Gloucester City Council,23UE,Museum of Gloucester,MU002,Professional Membership & Subscriptions,3403,30/05/2019,29/05/2019,MUSEUMS ASCTN,0207 5667803,,EC1R 0AZ,REDACTED,556*********8997,5971,ART DEALERS AND GALLERIES,200,Pound Sterling (826),1.000000000,200,Debit,85481479150143299467580,02/06/2019,GLOUCESTER CC
Gloucester City Council,23UE,Docks Complex - Services,AM006,Hospitality & Refreshments,3104,09/05/2019,08/05/2019,SAINSBURYS 2221,GLOUCESTER,GBR,GL2 5SA,REDACTED,556*********4301,5411,"GROCERY STORES, SUPERMARKETS",39.5,Pound Sterling (826),1.000000000,39.5,Debit,25425159129030141725946,02/06/2019,GLOUCESTER CC
Gloucester City Council,23UE,Docks Complex - Services,AM006,Hospitality & Refreshments,3104,21/05/2019,20/05/2019,SAINSBURYS SACAT 2221,GLOUCESTER,GBR,GL2 5SA,REDACTED,556*********4301,5411,"GROCERY STORES, SUPERMARKETS",18,Pound Sterling (826),1.000000000,18,Debit,25425159141010165509503,02/06/2019,GLOUCESTER CC
Gloucester City Council,23UE,Docks Complex - Services,AM006,,1001,23/05/2019,22/05/2019,B & Q 1179,GLOUCESTER,,GL12SG,REDACTED,556*********4301,5211,LUMBER AND BUILDING MATERIALS STORES,44.94,Pound Sterling (826),1.000000000,44.94,Debit,85481479143141432550262,02/06/2019,GLOUCESTER CC
Gloucester City Council,23UE,Docks Complex - Services,AM006,Hospitality & Refreshments,3104,29/05/2019,28/05/2019,TESCO STORES 6819,GLOUCESTER,GBR,GL1 1TP,REDACTED,556*********4301,5411,"GROCERY STORES, SUPERMARKETS",14.89,Pound Sterling (826),1.000000000,14.89,Debit,15377759149060071753594,02/06/2019,GLOUCESTER CC
Gloucester City Council,23UE,Docks Complex - Services,AM006,Hospitality & Refreshments,3104,03/05/2019,02/05/2019,MCOLLS,GLOUCESTERSHI,GBR,GL1 2DN,REDACTED,556*********6128,5499,"MISC FOOD STORES-SPECIALITY,CONVENIENCE,MARKETS,VENDING MACHINES",3.99,Pound Sterling (826),1.000000000,3.99,Debit,45377759123000358249442,02/06/2019,GLOUCESTER CC
Gloucester City Council,23UE,Docks Complex - Services,AM006,Building Repairs and Maintenance,1001,13/05/2019,10/05/2019,B & Q 1179,GLOUCESTER,,GL12SG,REDACTED,556*********6128,5211,LUMBER AND BUILDING MATERIALS STORES,0.75,Pound Sterling (826),1.000000000,0.75,Debit,85481479131138382254964,02/06/2019,GLOUCESTER CC
Gloucester City Council,23UE,Docks Complex - Services,AM006,Hospitality & Refreshments,3104,15/05/2019,14/05/2019,SAINSBURYS SACAT 2221,GLOUCESTER,GBR,GL2 5SA,REDACTED,556*********6128,5411,"GROCERY STORES, SUPERMARKETS",28,Pound Sterling (826),1.000000000,28,Debit,25425159135070177799672,02/06/2019,GLOUCESTER CC
Gloucester City Council,23UE,Docks Complex - Services,AM006,Hospitality & Refreshments,3104,16/05/2019,15/05/2019,SAINSBURYS SACAT 2221,GLOUCESTER,GBR,GL2 5SA,REDACTED,556*********6128,5411,"GROCERY STORES, SUPERMARKETS",23,Pound Sterling (826),1.000000000,23,Debit,25425159136080181318996,02/06/2019,GLOUCESTER CC
Gloucester City Council,23UE,Docks Complex - Services,AM006,Hospitality & Refreshments,3104,22/05/2019,21/05/2019,SAINSBURYS SACAT 2221,GLOUCESTER,GBR,GL2 5SA,REDACTED,556*********6128,5411,"GROCERY STORES, SUPERMARKETS",27,Pound Sterling (826),1.000000000,27,Debit,25425159142020176504178,02/06/2019,GLOUCESTER CC
Gloucester City Council,23UE,Docks Complex - Services,AM006,Building Repairs and Maintenance,1001,22/05/2019,21/05/2019,B & Q 1179,GLOUCESTER,,GL12SG,REDACTED,556*********6128,5211,LUMBER AND BUILDING MATERIALS STORES,23.03,Pound Sterling (826),1.000000000,23.03,Debit,85481479142141210924417,02/06/2019,GLOUCESTER CC
Gloucester City Council,23UE,Docks Complex - Services,AM006,Building Repairs and Maintenance,1001,22/05/2019,21/05/2019,WICKES GLOUCESTER,GLOUCESTER,,GL25DX,REDACTED,556*********6128,5211,LUMBER AND BUILDING MATERIALS STORES,9.36,Pound Sterling (826),1.000000000,9.36,Debit,85481479142141166195004,02/06/2019,GLOUCESTER CC
Gloucester City Council,23UE,Docks Complex - Services,AM006,Hospitality & Refreshments,3104,23/05/2019,22/05/2019,TESCO STORE 3074,QUEDGELEY,GBR,GL2 4PF,REDACTED,556*********6128,5411,"GROCERY STORES, SUPERMARKETS",6,Pound Sterling (826),1.000000000,6,Debit,15377759143030092219806,02/06/2019,GLOUCESTER CC
Gloucester City Council,23UE,Docks Complex - Services,AM006,Hospitality & Refreshments,3104,23/05/2019,22/05/2019,SAINSBURYS 2221,GLOUCESTER,GBR,GL2 5SA,REDACTED,556*********6128,5411,"GROCERY STORES, SUPERMARKETS",34,Pound Sterling (826),1.000000000,34,Debit,25425159143030177698241,02/06/2019,GLOUCESTER CC
Gloucester City Council,23UE,Docks Complex - Services,AM006,Hospitality & Refreshments,3104,24/05/2019,23/05/2019,SAINSBURYS SACAT 2221,GLOUCESTER,GBR,GL2 5SA,REDACTED,556*********6128,5411,"GROCERY STORES, SUPERMARKETS",15,Pound Sterling (826),1.000000000,15,Debit,25425159144040187189858,02/06/2019,GLOUCESTER CC
Gloucester City Council,23UE,Docks Complex - Services,AM006,Hospitality & Refreshments,3104,24/05/2019,23/05/2019,CATERCATER LTD,GLOUCESTER,GBR,GL2 9DW,REDACTED,556*********6128,5811,CATERERS,4.6,Pound Sterling (826),1.000000000,4.6,Debit,05272479144910060306977,02/06/2019,GLOUCESTER CC
Gloucester City Council,23UE,Business Support,BI004,Public Transport - Staff,2402,06/05/2019,03/05/2019,Trainline,London,GBR,1445,REDACTED,556*********4234,4112,PASSENGER RAILWAYS,147.7,Pound Sterling (826),1.000000000,147.7,Debit,85130089123917684173416,02/06/2019,GLOUCESTER CC
Gloucester City Council,23UE,Business Support,BI004,Mileage and Travel Allowances,2401,08/05/2019,07/05/2019,Hotel Ibis,LONDON WHITEC,,E1 1JE,REDACTED,556*********4234,3533,HOTEL IBIS,95.76,Pound Sterling (826),1.000000000,95.76,Debit,85481479128137649758945,02/06/2019,GLOUCESTER CC
Gloucester City Council,23UE,Development Management,PL003,Public Transport - Staff,2402,09/05/2019,08/05/2019,Trainline,London,GBR,1445,REDACTED,556*********4234,4112,PASSENGER RAILWAYS,96,Pound Sterling (826),1.000000000,96,Debit,85130089128918913876667,02/06/2019,GLOUCESTER CC
Gloucester City Council,23UE,City Centre Improvement,NE001,Public Transport - Staff,2402,30/05/2019,29/05/2019,Trainline,London,GBR,1445,REDACTED,556*********4234,4112,PASSENGER RAILWAYS,18.75,Pound Sterling (826),1.000000000,18.75,Debit,85130089149921877080842,02/06/2019,GLOUCESTER CC
Gloucester City Council,23UE,Development Management,PL003,Public Transport - Staff,2402,30/05/2019,29/05/2019,Trainline,London,GBR,1445,REDACTED,556*********4234,4112,PASSENGER RAILWAYS,74,Pound Sterling (826),1.000000000,74,Debit,85130089149921877090585,02/06/2019,GLOUCESTER CC
Gloucester City Council,23UE,Elections,DS004,General Supplies/Materials/European Elections,3025/C242,06/05/2019,03/05/2019,AMZNMKTPLACE AMAZON.CO,AMAZON.CO.UK,GBR,,REDACTED,556*********3029,5999,MISCELLANEOUS AND RETAIL STORES,62.99,Pound Sterling (826),1.000000000,62.99,Debit,85389249123917703600108,02/06/2019,GLOUCESTER CC
Gloucester City Council,23UE,Elections,DS004,General Supplies/Materials/European Elections,3025/C242,06/05/2019,03/05/2019,AMZNMKTPLACE AMAZON.CO,AMAZON.CO.UK,GBR,,REDACTED,556*********3029,5999,MISCELLANEOUS AND RETAIL STORES,20.6,Pound Sterling (826),1.000000000,20.6,Debit,85389249123917708077807,02/06/2019,GLOUCESTER CC
Gloucester City Council,23UE,Elections,DS004,General Supplies/Materials/European Elections,3025/C242,17/05/2019,16/05/2019,PAYPAL *DECALARAMA,35314369001,GBR,TW91EH,REDACTED,556*********3029,5169,CHEMICALS AND ALLIED PRODUCTS NOT ELSEWH,133.65,Pound Sterling (826),1.000000000,133.65,Debit,85130089136919287381136,02/06/2019,GLOUCESTER CC
Gloucester City Council,23UE,Housing Services,HS001,B&B Payments,1303,06/05/2019,02/05/2019,TRAVELODGE GB0809,GLOUCESTER,,GL1 5SF,REDACTED,556*********6959,3615,TRAVELODGE,812.5,Pound Sterling (826),1.000000000,812.5,Debit,55504439124110298653919,02/06/2019,GLOUCESTER CC
Gloucester City Council,23UE,Housing Services,HS001,B&B Payments,1303,06/05/2019,03/05/2019,TRAVELODGE GB0809,GLOUCESTER,,GL1 5SF,REDACTED,556*********6959,3615,TRAVELODGE,710.5,Pound Sterling (826),1.000000000,710.5,Debit,55504439125110217747114,02/06/2019,GLOUCESTER CC
Gloucester City Council,23UE,Housing Services,HS001,B&B Payments,1303,06/05/2019,03/05/2019,TRAVELODGE GB0000,THAME,,OX9 3AT,REDACTED,556*********6959,3615,TRAVELODGE,-54,Pound Sterling (826),1.000000000,-54,Credit,55504439123298172942168,02/06/2019,GLOUCESTER CC
Gloucester City Council,23UE,Housing Services,HS001,B&B Payments,1303,08/05/2019,07/05/2019,TRAVELODGE GB0000,THAME,,OX9 3AT,REDACTED,556*********6959,3615,TRAVELODGE,193,Pound Sterling (826),1.000000000,193,Debit,55504439127298197109286,02/06/2019,GLOUCESTER CC
Gloucester City Council,23UE,Housing Services,HS001,B&B Payments,1303,08/05/2019,07/05/2019,TRAVELODGE GB0000,THAME,,OX9 3AT,REDACTED,556*********6959,3615,TRAVELODGE,74,Pound Sterling (826),1.000000000,74,Debit,55504439127298197079521,02/06/2019,GLOUCESTER CC
Gloucester City Council,23UE,Housing Services,HS001,B&B Payments,1303,08/05/2019,07/05/2019,TRAVELODGE GB0000,THAME,,OX9 3AT,REDACTED,556*********6959,3615,TRAVELODGE,197,Pound Sterling (826),1.000000000,197,Debit,55504439127298197078523,02/06/2019,GLOUCESTER CC
Gloucester City Council,23UE,Housing Services,HS001,B&B Payments,1303,08/05/2019,07/05/2019,TRAVELODGE GB0000,THAME,,OX9 3AT,REDACTED,556*********6959,3615,TRAVELODGE,148,Pound Sterling (826),1.000000000,148,Debit,55504439127298197077491,02/06/2019,GLOUCESTER CC
Gloucester City Council,23UE,Housing Services,HS001,B&B Payments,1303,08/05/2019,07/05/2019,TRAVELODGE GB0000,THAME,,OX9 3AT,REDACTED,556*********6959,3615,TRAVELODGE,74,Pound Sterling (826),1.000000000,74,Debit,55504439127298197074902,02/06/2019,GLOUCESTER CC
Gloucester City Council,23UE,Housing Services,HS001,B&B Payments,1303,09/05/2019,08/05/2019,TRAVELODGE GB0000,THAME,,OX9 3AT,REDACTED,556*********6959,3615,TRAVELODGE,143,Pound Sterling (826),1.000000000,143,Debit,55504439128298104974169,02/06/2019,GLOUCESTER CC
Gloucester City Council,23UE,Housing Services,HS001,B&B Payments,1303,09/05/2019,08/05/2019,TRAVELODGE GB0000,THAME,,OX9 3AT,REDACTED,556*********6959,3615,TRAVELODGE,310,Pound Sterling (826),1.000000000,310,Debit,55504439128298104968682,02/06/2019,GLOUCESTER CC
Gloucester City Council,23UE,Housing Services,HS001,B&B Payments,1303,10/05/2019,09/05/2019,TRAVELODGE GB0000,THAME,,OX9 3AT,REDACTED,556*********6959,3615,TRAVELODGE,236,Pound Sterling (826),1.000000000,236,Debit,55504439129298112337085,02/06/2019,GLOUCESTER CC
Gloucester City Council,23UE,Housing Services,HS001,B&B Payments,1303,13/05/2019,10/05/2019,TRAVELODGE GB0000,THAME,,OX9 3AT,REDACTED,556*********6959,3615,TRAVELODGE,172,Pound Sterling (826),1.000000000,172,Debit,55504439130298121966806,02/06/2019,GLOUCESTER CC
Gloucester City Council,23UE,Housing Services,HS001,B&B Payments,1303,13/05/2019,10/05/2019,TRAVELODGE GB0000,THAME,,OX9 3AT,REDACTED,556*********6959,3615,TRAVELODGE,172,Pound Sterling (826),1.000000000,172,Debit,55504439130298121959967,02/06/2019,GLOUCESTER CC
Gloucester City Council,23UE,Housing Services,HS001,B&B Payments,1303,14/05/2019,13/05/2019,TRAVELODGE GB0000,THAME,,OX9 3AT,REDACTED,556*********6959,3615,TRAVELODGE,242,Pound Sterling (826),1.000000000,242,Debit,55504439133298139473966,02/06/2019,GLOUCESTER CC
Gloucester City Council,23UE,Housing Services,HS001,B&B Payments,1303,14/05/2019,13/05/2019,TRAVELODGE GB0000,THAME,,OX9 3AT,REDACTED,556*********6959,3615,TRAVELODGE,158,Pound Sterling (826),1.000000000,158,Debit,55504439133298139491984,02/06/2019,GLOUCESTER CC
Gloucester City Council,23UE,Housing Services,HS001,B&B Payments,1303,14/05/2019,13/05/2019,TRAVELODGE GB0000,THAME,,OX9 3AT,REDACTED,556*********6959,3615,TRAVELODGE,237,Pound Sterling (826),1.000000000,237,Debit,55504439133298139507490,02/06/2019,GLOUCESTER CC
Gloucester City Council,23UE,Housing Services,HS001,B&B Payments,1303,14/05/2019,13/05/2019,TRAVELODGE GB0000,THAME,,OX9 3AT,REDACTED,556*********6959,3615,TRAVELODGE,242,Pound Sterling (826),1.000000000,242,Debit,55504439133298139562875,02/06/2019,GLOUCESTER CC
Gloucester City Council,23UE,Housing Services,HS001,B&B Payments,1303,15/05/2019,14/05/2019,TRAVELODGE GB0000,THAME,,OX9 3AT,REDACTED,556*********6959,3615,TRAVELODGE,217,Pound Sterling (826),1.000000000,217,Debit,55504439134298146822964,02/06/2019,GLOUCESTER CC
Gloucester City Council,23UE,Housing Services,HS001,B&B Payments,1303,15/05/2019,14/05/2019,TRAVELODGE GB0000,THAME,,OX9 3AT,REDACTED,556*********6959,3615,TRAVELODGE,232,Pound Sterling (826),1.000000000,232,Debit,55504439134298146799642,02/06/2019,GLOUCESTER CC
Gloucester City Council,23UE,Housing Services,HS001,B&B Payments,1303,15/05/2019,14/05/2019,TRAVELODGE GB0000,THAME,,OX9 3AT,REDACTED,556*********6959,3615,TRAVELODGE,217,Pound Sterling (826),1.000000000,217,Debit,55504439134298146823244,02/06/2019,GLOUCESTER CC
Gloucester City Council,23UE,Housing Services,HS001,B&B Payments,1303,16/05/2019,15/05/2019,TRAVELODGE GB0000,THAME,,OX9 3AT,REDACTED,556*********6959,3615,TRAVELODGE,285,Pound Sterling (826),1.000000000,285,Debit,55504439135298154459351,02/06/2019,GLOUCESTER CC
Gloucester City Council,23UE,Housing Services,HS001,B&B Payments,1303,17/05/2019,16/05/2019,TRAVELODGE GB0000,THAME,,OX9 3AT,REDACTED,556*********6959,3615,TRAVELODGE,211,Pound Sterling (826),1.000000000,211,Debit,55504439136298162380242,02/06/2019,GLOUCESTER CC
Gloucester City Council,23UE,Housing Services,HS001,B&B Payments,1303,17/05/2019,16/05/2019,TRAVELODGE GB0000,THAME,,OX9 3AT,REDACTED,556*********6959,3615,TRAVELODGE,211,Pound Sterling (826),1.000000000,211,Debit,55504439136298162373775,02/06/2019,GLOUCESTER CC
Gloucester City Council,23UE,Housing Services,HS001,B&B Payments,1303,20/05/2019,17/05/2019,TRAVELODGE GB0000,THAME,,OX9 3AT,REDACTED,556*********6959,3615,TRAVELODGE,206,Pound Sterling (826),1.000000000,206,Debit,55504439137298172180680,02/06/2019,GLOUCESTER CC
Gloucester City Council,23UE,Housing Services,HS001,B&B Payments,1303,20/05/2019,17/05/2019,TRAVELODGE GB0000,THAME,,OX9 3AT,REDACTED,556*********6959,3615,TRAVELODGE,157,Pound Sterling (826),1.000000000,157,Debit,55504439137298172177363,02/06/2019,GLOUCESTER CC
Gloucester City Council,23UE,Housing Services,HS001,B&B Payments,1303,20/05/2019,17/05/2019,TRAVELODGE GB0000,THAME,,OX9 3AT,REDACTED,556*********6959,3615,TRAVELODGE,-84,Pound Sterling (826),1.000000000,-84,Credit,55504439137298172214794,02/06/2019,GLOUCESTER CC
Gloucester City Council,23UE,Housing Services,HS001,B&B Payments,1303,21/05/2019,20/05/2019,TRAVELODGE GB0000,THAME,,OX9 3AT,REDACTED,556*********6959,3615,TRAVELODGE,306,Pound Sterling (826),1.000000000,306,Debit,55504439140298190017406,02/06/2019,GLOUCESTER CC
Gloucester City Council,23UE,Housing Services,HS001,B&B Payments,1303,21/05/2019,20/05/2019,TRAVELODGE GB0000,THAME,,OX9 3AT,REDACTED,556*********6959,3615,TRAVELODGE,158,Pound Sterling (826),1.000000000,158,Debit,55504439140298190020764,02/06/2019,GLOUCESTER CC
Gloucester City Council,23UE,Housing Services,HS001,B&B Payments,1303,21/05/2019,20/05/2019,TRAVELODGE GB0000,THAME,,OX9 3AT,REDACTED,556*********6959,3615,TRAVELODGE,163,Pound Sterling (826),1.000000000,163,Debit,55504439140298190049995,02/06/2019,GLOUCESTER CC
Gloucester City Council,23UE,Housing Services,HS001,B&B Payments,1303,21/05/2019,20/05/2019,TRAVELODGE GB0000,THAME,,OX9 3AT,REDACTED,556*********6959,3615,TRAVELODGE,163,Pound Sterling (826),1.000000000,163,Debit,55504439140298190055299,02/06/2019,GLOUCESTER CC
Gloucester City Council,23UE,Housing Services,HS001,B&B Payments,1303,22/05/2019,21/05/2019,TRAVELODGE GB0000,THAME,,OX9 3AT,REDACTED,556*********6959,3615,TRAVELODGE,39,Pound Sterling (826),1.000000000,39,Debit,55504439141298197634897,02/06/2019,GLOUCESTER CC
Gloucester City Council,23UE,Housing Services,HS001,B&B Payments,1303,22/05/2019,21/05/2019,TRAVELODGE GB0000,THAME,,OX9 3AT,REDACTED,556*********6959,3615,TRAVELODGE,393,Pound Sterling (826),1.000000000,393,Debit,55504439141298197603959,02/06/2019,GLOUCESTER CC
Gloucester City Council,23UE,Housing Services,HS001,B&B Payments,1303,23/05/2019,22/05/2019,TRAVELODGE GB0000,THAME,,OX9 3AT,REDACTED,556*********6959,3615,TRAVELODGE,392,Pound Sterling (826),1.000000000,392,Debit,55504439142298105373074,02/06/2019,GLOUCESTER CC
Gloucester City Council,23UE,Housing Services,HS001,B&B Payments,1303,23/05/2019,22/05/2019,TRAVELODGE GB0000,THAME,,OX9 3AT,REDACTED,556*********6959,3615,TRAVELODGE,392,Pound Sterling (826),1.000000000,392,Debit,55504439142298105371169,02/06/2019,GLOUCESTER CC
Gloucester City Council,23UE,Housing Services,HS001,B&B Payments,1303,23/05/2019,22/05/2019,TRAVELODGE GB0000,THAME,,OX9 3AT,REDACTED,556*********6959,3615,TRAVELODGE,392,Pound Sterling (826),1.000000000,392,Debit,55504439142298105367332,02/06/2019,GLOUCESTER CC
Gloucester City Council,23UE,Housing Services,HS001,General Supplies/Materials,3025,24/05/2019,23/05/2019,Amazon Prime*MN24V8DB4,amzn.co.uk/pm,LUX,L2338,REDACTED,556*********6959,5968,CONTINUITY/SUBSCRIPTION MERCHANTS,7.99,Pound Sterling (826),1.000000000,7.99,Debit,55204729143200652560703,02/06/2019,GLOUCESTER CC
Gloucester City Council,23UE,Housing Services,HS001,B&B Payments,1303,24/05/2019,23/05/2019,TRAVELODGE GB0000,THAME,,OX9 3AT,REDACTED,556*********6959,3615,TRAVELODGE,370,Pound Sterling (826),1.000000000,370,Debit,55504439143298112921948,02/06/2019,GLOUCESTER CC
Gloucester City Council,23UE,Housing Services,HS001,B&B Payments,1303,24/05/2019,23/05/2019,TRAVELODGE GB0000,THAME,,OX9 3AT,REDACTED,556*********6959,3615,TRAVELODGE,370,Pound Sterling (826),1.000000000,370,Debit,55504439143298112916609,02/06/2019,GLOUCESTER CC
Gloucester City Council,23UE,Housing Services,HS001,B&B Payments,1303,27/05/2019,24/05/2019,TRAVELODGE GB0000,THAME,,OX9 3AT,REDACTED,556*********6959,3615,TRAVELODGE,419,Pound Sterling (826),1.000000000,419,Debit,55504439144298123386965,02/06/2019,GLOUCESTER CC
Gloucester City Council,23UE,Housing Services,HS001,B&B Payments,1303,27/05/2019,24/05/2019,Amerisuites,GLOUCESTER,,GL2 4NF,REDACTED,556*********6959,3514,AMERISUITES,285,Pound Sterling (826),1.000000000,285,Debit,85481479145142156688997,02/06/2019,GLOUCESTER CC
Gloucester City Council,23UE,Housing Services,HS001,B&B Payments,1303,29/05/2019,28/05/2019,TRAVELODGE GB0000,THAME,,OX9 3AT,REDACTED,556*********6959,3615,TRAVELODGE,222,Pound Sterling (826),1.000000000,222,Debit,55504439148298149313650,02/06/2019,GLOUCESTER CC
Gloucester City Council,23UE,Housing Services,HS001,B&B Payments,1303,29/05/2019,28/05/2019,TRAVELODGE GB0000,THAME,,OX9 3AT,REDACTED,556*********6959,3615,TRAVELODGE,64,Pound Sterling (826),1.000000000,64,Debit,55504439148298149316638,02/06/2019,GLOUCESTER CC
Gloucester City Council,23UE,Housing Services,HS001,B&B Payments,1303,29/05/2019,28/05/2019,TRAVELODGE GB0000,THAME,,OX9 3AT,REDACTED,556*********6959,3615,TRAVELODGE,148,Pound Sterling (826),1.000000000,148,Debit,55504439148298149320135,02/06/2019,GLOUCESTER CC
Gloucester City Council,23UE,Housing Services,HS001,B&B Payments,1303,29/05/2019,28/05/2019,TRAVELODGE GB0000,THAME,,OX9 3AT,REDACTED,556*********6959,3615,TRAVELODGE,434,Pound Sterling (826),1.000000000,434,Debit,55504439148298149284141,02/06/2019,GLOUCESTER CC
Gloucester City Council,23UE,Housing Services,HS001,B&B Payments,1303,29/05/2019,28/05/2019,TRAVELODGE GB0000,THAME,,OX9 3AT,REDACTED,556*********6959,3615,TRAVELODGE,349,Pound Sterling (826),1.000000000,349,Debit,55504439148298149292912,02/06/2019,GLOUCESTER CC
Gloucester City Council,23UE,Housing Services,HS001,B&B Payments,1303,31/05/2019,30/05/2019,TRAVELODGE GB0000,THAME,,OX9 3AT,REDACTED,556*********6959,3615,TRAVELODGE,265,Pound Sterling (826),1.000000000,265,Debit,55504439150298165618847,02/06/2019,GLOUCESTER CC
Gloucester City Council,23UE,Housing Services,HS001,B&B Payments,1303,31/05/2019,30/05/2019,TRAVELODGE GB0000,THAME,,OX9 3AT,REDACTED,556*********6959,3615,TRAVELODGE,331,Pound Sterling (826),1.000000000,331,Debit,55504439150298165667232,02/06/2019,GLOUCESTER CC
Gloucester City Council,23UE,Housing Services,HS001,B&B Payments,1303,31/05/2019,30/05/2019,TRAVELODGE GB0000,THAME,,OX9 3AT,REDACTED,556*********6959,3615,TRAVELODGE,-49,Pound Sterling (826),1.000000000,-49,Credit,55504439150298165621106,02/06/2019,GLOUCESTER CC
Gloucester City Council,23UE,Housing Services,HS001,B&B Payments,1303,31/05/2019,30/05/2019,TRAVELODGE GB0000,THAME,,OX9 3AT,REDACTED,556*********6959,3615,TRAVELODGE,-49,Pound Sterling (826),1.000000000,-49,Credit,55504439150298165621098,02/06/2019,GLOUCESTER CC
Gloucester City Council,23UE,Business Transformation,BI006,ICT New Hardware,3523,03/05/2019,02/05/2019,AMZN Mktp UK*MN8B87LO4,800-279-6620,LUX,L2338,REDACTED,556*********3063,5942,BOOK STORES,31.99,Pound Sterling (826),1.000000000,31.99,Debit,55204729122200885824699,02/06/2019,GLOUCESTER CC
Gloucester City Council,23UE,Financial Services,FS004,Public Transport - Staff,2402,03/05/2019,02/05/2019,TFL VISITOR SHOP,LONDON,GBR,SW1H 0ET,REDACTED,556*********3063,5965,COMBINATION CATALOG AND RETAIL MERCHANT,16,Pound Sterling (826),1.000000000,16,Debit,45425159123000343039937,02/06/2019,GLOUCESTER CC
Gloucester City Council,23UE,City Centre Improvement,NE001,Conference Fees,0553,03/05/2019,02/05/2019,EB *FUTURECONSUMER THE,801-413-7200,IRL,DUBLIN 8,REDACTED,556*********3063,7399,BUSINESS SERVICES NOT ELSEWHERE CLASSIFIED,360,Pound Sterling (826),1.000000000,360,Debit,15276329123000157566928,02/06/2019,GLOUCESTER CC
Gloucester City Council,23UE,Financial Services,FS004,Public Transport - Staff,2402,03/05/2019,02/05/2019,WWW.GWR.COM,07889651585,,SN1 1HL,REDACTED,556*********3063,4112,PASSENGER RAILWAYS,50.5,Pound Sterling (826),1.000000000,50.5,Debit,55504439122081164393090,02/06/2019,GLOUCESTER CC
Gloucester City Council,23UE,Civica Admin Charges,BI002,Professional Membership & Subscriptions,3952,08/05/2019,07/05/2019,HMCOURTS-SERVICE.G,01452420100,,GL12ZG,REDACTED,556*********3063,9222,FINES,216.5,Pound Sterling (826),1.000000000,216.5,Debit,85481479128137591953015,02/06/2019,GLOUCESTER CC
Gloucester City Council,23UE,Civica Admin Charges,BI002,Professional Membership & Subscriptions,3952,10/05/2019,09/05/2019,WWW.GOV.UK/HMCTS,03001231056,,NN1 2LH,REDACTED,556*********3063,9399,GOVERNMENT SERVICES NOT ELSEWHERE CLASSIFIED,185,Pound Sterling (826),1.000000000,185,Debit,85481479130138092433560,02/06/2019,GLOUCESTER CC
Gloucester City Council,23UE,Civica Admin Charges,BI002,Professional Membership & Subscriptions,3952,10/05/2019,09/05/2019,WWW.GOV.UK/HMCTS,03001231056,,NN1 2LH,REDACTED,556*********3063,9399,GOVERNMENT SERVICES NOT ELSEWHERE CLASSIFIED,185,Pound Sterling (826),1.000000000,185,Debit,85481479130138087448748,02/06/2019,GLOUCESTER CC
Gloucester City Council,23UE,Civica Admin Charges,BI002,Professional Membership & Subscriptions,3952,10/05/2019,09/05/2019,WWW.GOV.UK/HMCTS,03001231056,,NN1 2LH,REDACTED,556*********3063,9399,GOVERNMENT SERVICES NOT ELSEWHERE CLASSIFIED,105,Pound Sterling (826),1.000000000,105,Debit,85481479130138104335738,02/06/2019,GLOUCESTER CC
Gloucester City Council,23UE,Civica Admin Charges,BI002,Professional Membership & Subscriptions,3952,13/05/2019,10/05/2019,WWW.GOV.UK/HMCTS,03001231056,,NN1 2LH,REDACTED,556*********3063,9399,GOVERNMENT SERVICES NOT ELSEWHERE CLASSIFIED,185,Pound Sterling (826),1.000000000,185,Debit,85481479131138354215738,02/06/2019,GLOUCESTER CC
Gloucester City Council,23UE,Civica Admin Charges,BI002,Professional Membership & Subscriptions,3952,13/05/2019,10/05/2019,WWW.GOV.UK/HMCTS,03001231056,,NN1 2LH,REDACTED,556*********3063,9399,GOVERNMENT SERVICES NOT ELSEWHERE CLASSIFIED,105,Pound Sterling (826),1.000000000,105,Debit,85481479131138352540012,02/06/2019,GLOUCESTER CC
Gloucester City Council,23UE,Business Transformation,BI006,Professional Membership & Subscriptions,3025,13/05/2019,11/05/2019,Amazon.co.uk*MN9XX3174,AMAZON.CO.UK,LUX,L2338,REDACTED,556*********3063,5969,ALL OTHER DIRECT MARKETERS,4.01,Pound Sterling (826),1.000000000,4.01,Debit,55204729131200967043241,02/06/2019,GLOUCESTER CC
Gloucester City Council,23UE,Civica Admin Charges,BI002,Professional Membership & Subscriptions,3952,14/05/2019,13/05/2019,WWW.GOV.UK/HMCTS,03001231056,,NN1 2LH,REDACTED,556*********3063,9399,GOVERNMENT SERVICES NOT ELSEWHERE CLASSIFIED,70,Pound Sterling (826),1.000000000,70,Debit,85481479134139147913479,02/06/2019,GLOUCESTER CC
Gloucester City Council,23UE,Civica Admin Charges,BI002,Professional Membership & Subscriptions,3952,15/05/2019,14/05/2019,WWW.GOV.UK/HMCTS,03001231056,,NN1 2LH,REDACTED,556*********3063,9399,GOVERNMENT SERVICES NOT ELSEWHERE CLASSIFIED,105,Pound Sterling (826),1.000000000,105,Debit,85481479135139406352905,02/06/2019,GLOUCESTER CC
Gloucester City Council,23UE,Civica Admin Charges,BI002,Professional Membership & Subscriptions,3952,15/05/2019,14/05/2019,WWW.GOV.UK/HMCTS,03001231056,,NN1 2LH,REDACTED,556*********3063,9399,GOVERNMENT SERVICES NOT ELSEWHERE CLASSIFIED,410,Pound Sterling (826),1.000000000,410,Debit,85481479135139400244363,02/06/2019,GLOUCESTER CC
Gloucester City Council,23UE,Business Transformation,BI006,General Supplies/Materials,3025,29/05/2019,28/05/2019,WWW.CABLEMONKEY.CO.UK,INTERNET,GBR,CM77 7AA,REDACTED,556*********3063,5065,ELECTRICAL PARTS AND EQUIPMENT,103.68,Pound Sterling (826),1.000000000,103.68,Debit,05272469149910137019484,02/06/2019,GLOUCESTER CC
Gloucester City Council,23UE,Countryside Unit,EP003,Road Fund License,2101,29/05/2019,28/05/2019,DVLA VEHICLE TAX,0300 1234321,,SA6 7JL,REDACTED,556*********3063,9399,GOVERNMENT SERVICES NOT ELSEWHERE CLASSIFIED,327.5,Pound Sterling (826),1.000000000,327.5,Debit,85481479149142990294347,02/06/2019,GLOUCESTER CC
Gloucester City Council,23UE,Civica Admin Charges,BI002,Professional Membership & Subscriptions,3952,30/05/2019,29/05/2019,HMCOURTS-SERVICE.G,01452420100,,GL12ZG,REDACTED,556*********3063,9222,FINES,1298,Pound Sterling (826),1.000000000,1298,Debit,85481479150143262135446,02/06/2019,GLOUCESTER CC
Gloucester City Council,23UE,Business Transformation,BI006,General Supplies/Materials,3025,31/05/2019,30/05/2019,www.anyvan.com,INTERNET,,SW11 4PQ,REDACTED,556*********3063,4214,"MOTOR FREIGHT CARRIERS, TRUCK-LOCAL/LONG DIST, MOVING & STORAGE",80,Pound Sterling (826),1.000000000,80,Debit,05184899150008052508465,02/06/2019,GLOUCESTER CC
